[Event "Early-Titled-Tuesday-Blitz-May-14-2024"]
[Site "Chess.com"]
[Date "2024.05.14"]
[Round "5"]
[White "David_George21"]
[Black "lluiss"]
[Result "0-1"]
[WhiteElo "2356"]
[BlackElo "2215"]
[TimeControl "180+1"]
[EndTime "8:59:27 PDT"]
[Termination "lluiss won by checkmate"]

1. e4 {[%clk 0:02:51.4]} 1... c5 {[%clk 0:02:59.3]} 2. Nf3 {[%clk 0:02:51.1]}
2... d6 {[%clk 0:02:57.8]} 3. d4 {[%clk 0:02:51.7]} 3... cxd4 {[%clk 0:02:57.7]}
4. Nxd4 {[%clk 0:02:52.6]} 4... Nf6 {[%clk 0:02:55.7]} 5. Nc3 {[%clk 0:02:53]}
5... g6 {[%clk 0:02:54.1]} 6. Be3 {[%clk 0:02:51.4]} 6... Bg7 {[%clk 0:02:54.1]}
7. f3 {[%clk 0:02:52]} 7... O-O {[%clk 0:02:53.1]} 8. Qd2 {[%clk 0:02:52.6]}
8... Nc6 {[%clk 0:02:53.3]} 9. g4 {[%clk 0:02:53.2]} 9... Nxd4 {[%clk
0:02:47.8]} 10. Bxd4 {[%clk 0:02:48.8]} 10... Be6 {[%clk 0:02:48.3]} 11. h4
{[%clk 0:02:47.3]} 11... Qa5 {[%clk 0:02:45.8]} 12. h5 {[%clk 0:02:46.7]} 12...
Rac8 {[%clk 0:02:33.5]} 13. h6 {[%clk 0:02:24.1]} 13... Bh8 {[%clk 0:02:31.8]}
14. g5 {[%clk 0:02:24.6]} 14... Nh5 {[%clk 0:02:10.6]} 15. Bxh8 {[%clk
0:02:23.9]} 15... Kxh8 {[%clk 0:02:09.3]} 16. f4 {[%clk 0:01:54.9]} 16... Nxf4
{[%clk 0:01:57.3]} 17. Qxf4 {[%clk 0:01:50.1]} 17... Rxc3 {[%clk 0:01:56.8]} 18.
O-O-O {[%clk 0:01:22.5]} 18... Rc5 {[%clk 0:01:42.8]} 19. a3 {[%clk 0:01:19.3]}
19... Rfc8 {[%clk 0:01:41.7]} 20. Rh2 {[%clk 0:01:17.6]} 20... Rxg5 {[%clk
0:01:34]} 21. Bd3 {[%clk 0:01:17.4]} 21... Qe5 {[%clk 0:01:31.1]} 22. Qf2 {[%clk
0:01:12.4]} 22... Rh5 {[%clk 0:01:26.9]} 23. Rxh5 {[%clk 0:01:03.4]} 23... Qxh5
{[%clk 0:01:26.7]} 24. Qd4+ {[%clk 0:00:58.5]} 24... f6 {[%clk 0:01:18.7]} 25.
Qxa7 {[%clk 0:00:58.1]} 25... Qxh6+ {[%clk 0:01:18.1]} 26. Kb1 {[%clk 0:00:58]}
26... Qh5 {[%clk 0:00:43.6]} 27. Rc1 {[%clk 0:00:35.4]} 27... Qc5 {[%clk
0:00:34.4]} 28. Qxb7 {[%clk 0:00:33.2]} 28... Rc7 {[%clk 0:00:34.7]} 29. Qb8+
{[%clk 0:00:21.1]} 29... Kg7 {[%clk 0:00:34.7]} 30. a4 {[%clk 0:00:06.8]} 30...
Qa7 {[%clk 0:00:22.3]} 31. Qxa7 {[%clk 0:00:05.1]} 31... Rxa7 {[%clk 0:00:21.3]}
32. Bb5 {[%clk 0:00:05.8]} 32... h5 {[%clk 0:00:19.4]} 33. b4 {[%clk 0:00:04.9]}
33... g5 {[%clk 0:00:17.4]} 34. a5 {[%clk 0:00:05.5]} 34... Kg6 {[%clk
0:00:13.6]} 35. a6 {[%clk 0:00:05.7]} 35... Bc8 {[%clk 0:00:11.8]} 36. c4 {[%clk
0:00:02]} 36... Bxa6 {[%clk 0:00:11.4]} 37. Bxa6 {[%clk 0:00:02.9]} 37... Rxa6
{[%clk 0:00:11.6]} 38. c5 {[%clk 0:00:02.4]} 38... dxc5 {[%clk 0:00:09.8]} 39.
bxc5 {[%clk 0:00:03.3]} 39... Rc6 {[%clk 0:00:09.8]} 40. Rc4 {[%clk 0:00:03.6]}
40... g4 {[%clk 0:00:07.8]} 41. Kc1 {[%clk 0:00:04.1]} 41... Kg5 {[%clk
0:00:08]} 42. Kd2 {[%clk 0:00:04.7]} 42... h4 {[%clk 0:00:08.2]} 43. Ke2 {[%clk
0:00:05.1]} 43... h3 {[%clk 0:00:07.9]} 44. Kf2 {[%clk 0:00:05.4]} 44... Kh4
{[%clk 0:00:08.1]} 45. Kg1 {[%clk 0:00:04.3]} 45... e5 {[%clk 0:00:06.9]} 46.
Rc3 {[%clk 0:00:02.9]} 46... g3 {[%clk 0:00:05.8]} 47. Kh1 {[%clk 0:00:03.2]}
47... Ra6 {[%clk 0:00:05.8]} 48. Rc1 {[%clk 0:00:02.4]} 48... Rc6 {[%clk
0:00:05.3]} 49. Kg1 {[%clk 0:00:02.5]} 49... Kg4 {[%clk 0:00:05.6]} 50. Rc3
{[%clk 0:00:02.3]} 50... Kf4 {[%clk 0:00:05.4]} 51. Kf1 {[%clk 0:00:02.6]} 51...
Kg4 {[%clk 0:00:00.3]} 52. Kg1 {[%clk 0:00:02.7]} 52... g2 {[%clk 0:00:01.2]}
53. Kh2 {[%clk 0:00:02.6]} 53... Kh4 {[%clk 0:00:01.2]} 54. Rxh3+ {[%clk
0:00:02.5]} 54... Kg4 {[%clk 0:00:02.1]} 55. Rc3 {[%clk 0:00:02.8]} 55... Kf4
{[%clk 0:00:02.3]} 56. Kxg2 {[%clk 0:00:03]} 56... Kxe4 {[%clk 0:00:02.5]} 57.
Kf2 {[%clk 0:00:02.6]} 57... Kd5 {[%clk 0:00:03.1]} 58. Ke2 {[%clk 0:00:01.7]}
58... Rxc5 {[%clk 0:00:02.8]} 59. Rd3+ {[%clk 0:00:02.5]} 59... Ke6 {[%clk
0:00:03.1]} 60. Rd8 {[%clk 0:00:02.9]} 60... Ra5 {[%clk 0:00:03.4]} 61. Rc8
{[%clk 0:00:03]} 61... Kf5 {[%clk 0:00:04.3]} 62. Rc6 {[%clk 0:00:03.1]} 62...
Ra2+ {[%clk 0:00:04.4]} 63. Ke3 {[%clk 0:00:04]} 63... Ra3+ {[%clk 0:00:04.8]}
64. Ke2 {[%clk 0:00:03.7]} 64... Rh3 {[%clk 0:00:05.4]} 65. Rc4 {[%clk
0:00:04.1]} 65... Rh2+ {[%clk 0:00:06.3]} 66. Ke3 {[%clk 0:00:03.7]} 66... Rh3+
{[%clk 0:00:06.9]} 67. Ke2 {[%clk 0:00:03.7]} 67... Rh5 {[%clk 0:00:07.7]} 68.
Rc6 {[%clk 0:00:03.8]} 68... Rh2+ {[%clk 0:00:08.6]} 69. Ke3 {[%clk 0:00:03.5]}
69... Rh3+ {[%clk 0:00:08.7]} 70. Ke2 {[%clk 0:00:03.6]} 70... Rh6 {[%clk
0:00:08.4]} 71. Rc4 {[%clk 0:00:03.6]} 71... e4 {[%clk 0:00:07.1]} 72. Rc5+
{[%clk 0:00:04.1]} 72... Kf4 {[%clk 0:00:07.4]} 73. Ra5 {[%clk 0:00:04.8]} 73...
f5 {[%clk 0:00:07.3]} 74. Ra8 {[%clk 0:00:04.7]} 74... Rh2+ {[%clk 0:00:07.8]}
75. Ke1 {[%clk 0:00:04.2]} 75... Rh1+ {[%clk 0:00:07.4]} 76. Ke2 {[%clk
0:00:04.1]} 76... Rh2+ {[%clk 0:00:08.3]} 77. Ke1 {[%clk 0:00:04]} 77... e3
{[%clk 0:00:08.6]} 78. Rf8 {[%clk 0:00:03.5]} 78... Ke4 {[%clk 0:00:08.3]} 79.
Re8+ {[%clk 0:00:03.4]} 79... Kf3 {[%clk 0:00:08]} 80. Rf8 {[%clk 0:00:01.8]}
80... Rh1# {[%clk 0:00:08.2]} 0-1

[Event "Early-Titled-Tuesday-Blitz-May-14-2024"]
[Site "Chess.com"]
[Date "2024.05.14"]
[Round "5"]
[White "A4RookA3"]
[Black "sergeikim"]
[Result "1/2-1/2"]
[WhiteElo "2433"]
[BlackElo "2631"]
[TimeControl "180+1"]
[EndTime "8:59:31 PDT"]
[Termination "Game drawn by repetition"]

1. e4 {[%clk 0:01:37.9]} 1... e5 {[%clk 0:02:59.8]} 2. Nf3 {[%clk 0:01:37.2]}
2... Nc6 {[%clk 0:02:59.9]} 3. Nc3 {[%clk 0:01:37.8]} 3... Nf6 {[%clk
0:02:59.2]} 4. a3 {[%clk 0:01:38.4]} 4... g6 {[%clk 0:02:58.7]} 5. Bc4 {[%clk
0:01:37.4]} 5... Bg7 {[%clk 0:02:58.4]} 6. d3 {[%clk 0:01:36.7]} 6... O-O {[%clk
0:02:58.2]} 7. O-O {[%clk 0:01:36.9]} 7... d6 {[%clk 0:02:57.6]} 8. h3 {[%clk
0:01:36.6]} 8... h6 {[%clk 0:02:55.2]} 9. Be3 {[%clk 0:01:36.6]} 9... Nh5 {[%clk
0:02:54.3]} 10. Qd2 {[%clk 0:01:35.5]} 10... Kh7 {[%clk 0:02:54.2]} 11. g4
{[%clk 0:01:22.2]} 11... Nf4 {[%clk 0:02:49.6]} 12. Bxf4 {[%clk 0:01:21.8]}
12... exf4 {[%clk 0:02:49.6]} 13. Qxf4 {[%clk 0:01:22.7]} 13... Nd4 {[%clk
0:02:38.4]} 14. Nxd4 {[%clk 0:01:07.7]} 14... Bxd4 {[%clk 0:02:38.1]} 15. Qd2
{[%clk 0:00:27.8]} 15... Qh4 {[%clk 0:02:31.6]} 16. Kg2 {[%clk 0:00:23]} 16...
c6 {[%clk 0:02:24.3]} 17. f3 {[%clk 0:00:08.4]} 17... b5 {[%clk 0:02:06.9]} 18.
Bb3 {[%clk 0:00:07.2]} 18... Be6 {[%clk 0:01:59.4]} 19. Qe1 {[%clk 0:00:04.4]}
19... Qf6 {[%clk 0:01:52.9]} 20. Bxe6 {[%clk 0:00:01.8]} 20... fxe6 {[%clk
0:01:52.4]} 21. f4 {[%clk 0:00:02.1]} 21... a5 {[%clk 0:01:42.2]} 22. Rb1 {[%clk
0:00:02.5]} 22... b4 {[%clk 0:01:35.2]} 23. axb4 {[%clk 0:00:03.4]} 23... axb4
{[%clk 0:01:35.2]} 24. Ne2 {[%clk 0:00:04]} 24... Bc5 {[%clk 0:01:31.6]} 25. d4
{[%clk 0:00:03.9]} 25... Bxd4 {[%clk 0:01:28.7]} 26. Nxd4 {[%clk 0:00:04.3]}
26... Qxd4 {[%clk 0:01:27.9]} 27. Qe2 {[%clk 0:00:04.9]} 27... Qc5 {[%clk
0:01:17.5]} 28. Qd3 {[%clk 0:00:05]} 28... d5 {[%clk 0:01:14.3]} 29. e5 {[%clk
0:00:04.2]} 29... Qb5 {[%clk 0:01:09.6]} 30. Qxb5 {[%clk 0:00:03.9]} 30... cxb5
{[%clk 0:01:09.1]} 31. c3 {[%clk 0:00:04.4]} 31... Rfc8 {[%clk 0:01:05]} 32. Rf3
{[%clk 0:00:03.4]} 32... Rc4 {[%clk 0:01:02.4]} 33. Kg3 {[%clk 0:00:03.1]} 33...
Rf8 {[%clk 0:00:55.7]} 34. cxb4 {[%clk 0:00:03]} 34... Rxb4 {[%clk 0:00:55.1]}
35. b3 {[%clk 0:00:03.8]} 35... Kg7 {[%clk 0:00:40.8]} 36. Rc1 {[%clk
0:00:04.1]} 36... Rf7 {[%clk 0:00:40.5]} 37. Rc6 {[%clk 0:00:04.4]} 37... Re7
{[%clk 0:00:40.6]} 38. Rb6 {[%clk 0:00:04.6]} 38... Kf7 {[%clk 0:00:35.1]} 39.
Rc3 {[%clk 0:00:04.6]} 39... Re4 {[%clk 0:00:27.3]} 40. Rxb5 {[%clk 0:00:03.4]}
40... g5 {[%clk 0:00:27.5]} 41. fxg5 {[%clk 0:00:03]} 41... hxg5 {[%clk
0:00:26.9]} 42. Rf3+ {[%clk 0:00:03.7]} 42... Kg7 {[%clk 0:00:26.8]} 43. Rb8
{[%clk 0:00:02.2]} 43... Rxe5 {[%clk 0:00:24.9]} 44. Rff8 {[%clk 0:00:02.6]}
44... Kg6 {[%clk 0:00:23.2]} 45. Rg8+ {[%clk 0:00:02.6]} 45... Rg7 {[%clk
0:00:23.3]} 46. Rxg7+ {[%clk 0:00:03]} 46... Kxg7 {[%clk 0:00:23.4]} 47. Kf3
{[%clk 0:00:03.7]} 47... d4 {[%clk 0:00:20.1]} 48. b4 {[%clk 0:00:04.3]} 48...
Re3+ {[%clk 0:00:19.8]} 49. Kf2 {[%clk 0:00:04.3]} 49... Kf6 {[%clk 0:00:19.5]}
50. b5 {[%clk 0:00:02.3]} 50... Rxh3 {[%clk 0:00:19.5]} 51. Rd8 {[%clk
0:00:01.6]} 51... Ke5 {[%clk 0:00:18.4]} 52. b6 {[%clk 0:00:02]} 52... Rb3
{[%clk 0:00:18.8]} 53. Rb8 {[%clk 0:00:02.4]} 53... Ke4 {[%clk 0:00:18.6]} 54.
Ke2 {[%clk 0:00:02.8]} 54... Rb2+ {[%clk 0:00:18]} 55. Kd1 {[%clk 0:00:03.3]}
55... e5 {[%clk 0:00:18.2]} 56. b7 {[%clk 0:00:03]} 56... d3 {[%clk 0:00:16.8]}
57. Kc1 {[%clk 0:00:03.5]} 57... Rb3 {[%clk 0:00:15.8]} 58. Kd2 {[%clk
0:00:03.5]} 58... Rb6 {[%clk 0:00:13.6]} 59. Kc3 {[%clk 0:00:03.6]} 59... Rc6+
{[%clk 0:00:12.3]} 60. Kd2 {[%clk 0:00:03.4]} 60... Rc2+ {[%clk 0:00:12.1]} 61.
Kd1 {[%clk 0:00:03.5]} 61... Rb2 {[%clk 0:00:12.6]} 62. Kc1 {[%clk 0:00:04.1]}
62... Rb4 {[%clk 0:00:09.7]} 63. Kd2 {[%clk 0:00:04]} 63... Rb5 {[%clk
0:00:07.5]} 64. Kc3 {[%clk 0:00:04]} 64... Ke3 {[%clk 0:00:05.3]} 65. Re8 {[%clk
0:00:03.4]} 65... Rxb7 {[%clk 0:00:04.7]} 66. Rxe5+ {[%clk 0:00:03.4]} 66... Kf4
{[%clk 0:00:05]} 67. Rd5 {[%clk 0:00:02]} 67... Kxg4 {[%clk 0:00:04.2]} 68. Kxd3
{[%clk 0:00:02.5]} 68... Re7 {[%clk 0:00:01.7]} 69. Rd4+ {[%clk 0:00:01.8]}
69... Kf3 {[%clk 0:00:02]} 70. Rd8 {[%clk 0:00:02.4]} 70... g4 {[%clk
0:00:02.4]} 71. Rf8+ {[%clk 0:00:03.1]} 71... Kg3 {[%clk 0:00:02.9]} 72. Kd2
{[%clk 0:00:03.9]} 72... Rd7+ {[%clk 0:00:03.4]} 73. Ke3 {[%clk 0:00:03.9]}
73... Re7+ {[%clk 0:00:04.3]} 74. Kd2 {[%clk 0:00:04.2]} 74... Rg7 {[%clk
0:00:05]} 75. Ke2 {[%clk 0:00:05.1]} 75... Re7+ {[%clk 0:00:05.6]} 76. Kf1
{[%clk 0:00:05.3]} 76... Re4 {[%clk 0:00:06.1]} 77. Ra8 {[%clk 0:00:05.6]} 77...
Rf4+ {[%clk 0:00:07]} 78. Kg1 {[%clk 0:00:05.8]} 78... Rf3 {[%clk 0:00:07.9]}
79. Ra1 {[%clk 0:00:04.9]} 79... Re3 {[%clk 0:00:08.2]} 80. Rb1 {[%clk
0:00:03.6]} 80... Rf3 {[%clk 0:00:08.4]} 81. Ra1 {[%clk 0:00:04.2]} 81... Rd3
{[%clk 0:00:09]} 82. Rb1 {[%clk 0:00:04.7]} 82... Rf3 {[%clk 0:00:09.8]} 83. Ra1
{[%clk 0:00:05.2]} 1/2-1/2

[Event "Early-Titled-Tuesday-Blitz-May-14-2024"]
[Site "Chess.com"]
[Date "2024.05.14"]
[Round "5"]
[White "Vincent_Vega95"]
[Black "GM_dmitrij"]
[Result "1-0"]
[WhiteElo "2759"]
[BlackElo "3006"]
[TimeControl "180+1"]
[EndTime "8:59:38 PDT"]
[Termination "Vincent_Vega95 won by resignation"]

1. Nf3 {[%clk 0:03:00.9]} 1... d5 {[%clk 0:02:52.1]} 2. d4 {[%clk 0:03:00.4]}
2... Nf6 {[%clk 0:02:51.7]} 3. c4 {[%clk 0:03:00.7]} 3... e6 {[%clk 0:02:49.4]}
4. Nc3 {[%clk 0:03:01]} 4... a6 {[%clk 0:02:48.8]} 5. cxd5 {[%clk 0:02:58.7]}
5... exd5 {[%clk 0:02:49.7]} 6. Bg5 {[%clk 0:02:55.6]} 6... c6 {[%clk
0:02:49.7]} 7. e3 {[%clk 0:02:55.1]} 7... Be6 {[%clk 0:02:49.4]} 8. Bd3 {[%clk
0:02:54.9]} 8... Nbd7 {[%clk 0:02:49.5]} 9. O-O {[%clk 0:02:54.6]} 9... Bd6
{[%clk 0:02:49.6]} 10. Bf4 {[%clk 0:02:53.4]} 10... Qc7 {[%clk 0:02:48.5]} 11.
Qd2 {[%clk 0:02:53.1]} 11... O-O {[%clk 0:02:47.6]} 12. Rfe1 {[%clk 0:02:52.3]}
12... Rfe8 {[%clk 0:02:42.3]} 13. h3 {[%clk 0:02:39.9]} 13... Rad8 {[%clk
0:02:23.3]} 14. Rac1 {[%clk 0:02:36.8]} 14... Qb8 {[%clk 0:02:21.3]} 15. Ng5
{[%clk 0:02:34]} 15... h6 {[%clk 0:02:16]} 16. Nf3 {[%clk 0:02:22.1]} 16... Re7
{[%clk 0:02:06.4]} 17. a3 {[%clk 0:02:16.1]} 17... Rde8 {[%clk 0:02:04]} 18. b4
{[%clk 0:02:13.2]} 18... Bxf4 {[%clk 0:01:51.6]} 19. exf4 {[%clk 0:02:13.1]}
19... Nb6 {[%clk 0:01:51.9]} 20. Ne5 {[%clk 0:02:07.4]} 20... Nc4 {[%clk
0:01:48.7]} 21. Qa2 {[%clk 0:01:59.5]} 21... Nd6 {[%clk 0:01:43.9]} 22. Qb1
{[%clk 0:01:53.8]} 22... Nfe4 {[%clk 0:01:28.4]} 23. Nxe4 {[%clk 0:01:43.3]}
23... dxe4 {[%clk 0:01:27.5]} 24. Bxe4 {[%clk 0:01:40.9]} 24... Nxe4 {[%clk
0:01:28.4]} 25. Qxe4 {[%clk 0:01:40.9]} 25... Bd5 {[%clk 0:01:29.3]} 26. Qb1
{[%clk 0:01:41.1]} 26... f6 {[%clk 0:01:27.6]} 27. Ng6 {[%clk 0:01:37.3]} 27...
Re4 {[%clk 0:01:19.3]} 28. f3 {[%clk 0:01:17.1]} 28... R4e6 {[%clk 0:01:13.3]}
29. Kf2 {[%clk 0:00:48.8]} 29... Qa7 {[%clk 0:01:11.5]} 30. Qd3 {[%clk
0:00:39.2]} 30... a5 {[%clk 0:00:54.9]} 31. f5 {[%clk 0:00:19.7]} 31... Rxe1
{[%clk 0:00:40.4]} 32. Rxe1 {[%clk 0:00:20.6]} 32... Rxe1 {[%clk 0:00:41]} 33.
Kxe1 {[%clk 0:00:21.3]} 33... axb4 {[%clk 0:00:41.7]} 34. Qe3 {[%clk 0:00:14.6]}
34... Bf7 {[%clk 0:00:33.9]} 35. Qe7 {[%clk 0:00:14.4]} 35... Qb8 {[%clk
0:00:34.2]} 36. axb4 {[%clk 0:00:14.2]} 36... Qg3+ {[%clk 0:00:25.6]} 37. Kf1
{[%clk 0:00:14.4]} 37... Bxg6 {[%clk 0:00:21.2]} 38. fxg6 {[%clk 0:00:15.3]}
38... Qxg6 {[%clk 0:00:21.6]} 39. Qxb7 {[%clk 0:00:15.4]} 39... Qd3+ {[%clk
0:00:21.8]} 40. Ke1 {[%clk 0:00:12.9]} 40... Qc3+ {[%clk 0:00:20.2]} 41. Kf1
{[%clk 0:00:12.6]} 41... Qc4+ {[%clk 0:00:19.9]} 42. Ke1 {[%clk 0:00:12]} 42...
Kh7 {[%clk 0:00:20]} 43. Kf2 {[%clk 0:00:09.5]} 43... Qxd4+ {[%clk 0:00:19.8]}
44. Kf1 {[%clk 0:00:10]} 44... Qd6 {[%clk 0:00:16.1]} 45. Qb6 {[%clk 0:00:08.8]}
45... h5 {[%clk 0:00:14.1]} 46. Kg1 {[%clk 0:00:07.9]} 46... Qd1+ {[%clk
0:00:12.6]} 47. Kh2 {[%clk 0:00:07.8]} 47... Qd6+ {[%clk 0:00:13.5]} 48. Kg1
{[%clk 0:00:08.1]} 48... Qd5 {[%clk 0:00:14]} 49. Qe3 {[%clk 0:00:06.5]} 49...
h4 {[%clk 0:00:12.8]} 50. Qc3 {[%clk 0:00:06.6]} 50... Kg6 {[%clk 0:00:12.1]}
51. Kf2 {[%clk 0:00:06.7]} 51... Kf7 {[%clk 0:00:10.8]} 52. Ke3 {[%clk
0:00:06.7]} 52... Qg5+ {[%clk 0:00:10.6]} 53. Kf2 {[%clk 0:00:06.4]} 53... Qd5
{[%clk 0:00:11.2]} 54. Ke3 {[%clk 0:00:06.9]} 54... Ke6 {[%clk 0:00:09.9]} 55.
Qd4 {[%clk 0:00:07.3]} 55... g5 {[%clk 0:00:07.4]} 56. Qe4+ {[%clk 0:00:05.3]}
56... Qe5 {[%clk 0:00:07.1]} 57. Kd3 {[%clk 0:00:04.3]} 57... Kd6 {[%clk
0:00:07.4]} 58. Qd4+ {[%clk 0:00:04.2]} 58... Qd5 {[%clk 0:00:07.7]} 59. Ke3
{[%clk 0:00:03.8]} 59... Ke6 {[%clk 0:00:06.3]} 60. Kd3 {[%clk 0:00:04.1]} 60...
f5 {[%clk 0:00:05.1]} 61. Ke3 {[%clk 0:00:04.2]} 61... Qe5+ {[%clk 0:00:04.9]}
62. Kd3 {[%clk 0:00:04.2]} 62... Qg3 {[%clk 0:00:04.2]} 63. Qe3+ {[%clk
0:00:04.1]} 63... Kd7 {[%clk 0:00:04]} 64. Qe2 {[%clk 0:00:03.6]} 64... Qd6+
{[%clk 0:00:03.8]} 65. Kc4 {[%clk 0:00:04.3]} 65... Qd5+ {[%clk 0:00:04.2]} 66.
Kc3 {[%clk 0:00:05]} 66... Qd6 {[%clk 0:00:04.6]} 67. Qd3 {[%clk 0:00:04.8]}
67... Qxd3+ {[%clk 0:00:04.8]} 68. Kxd3 {[%clk 0:00:05.3]} 68... Ke6 {[%clk
0:00:05.7]} 69. Kc4 {[%clk 0:00:04.9]} 69... Kd6 {[%clk 0:00:05.9]} 70. Kd4
{[%clk 0:00:05.4]} 70... Ke6 {[%clk 0:00:06.4]} 71. Kc5 {[%clk 0:00:05.4]} 71...
Kd7 {[%clk 0:00:07.1]} 72. Kc4 {[%clk 0:00:05.2]} 72... Ke7 {[%clk 0:00:06.9]}
73. Kd4 {[%clk 0:00:05.3]} 73... Kd6 {[%clk 0:00:06.8]} 74. Kc4 {[%clk
0:00:05.3]} 74... Ke5 {[%clk 0:00:07.3]} 75. Kc5 {[%clk 0:00:05.6]} 75... Kf4
{[%clk 0:00:07.8]} 76. Kxc6 {[%clk 0:00:06.3]} 76... Kg3 {[%clk 0:00:08.5]} 77.
b5 {[%clk 0:00:07.2]} 77... Kxg2 {[%clk 0:00:08.7]} 78. b6 {[%clk 0:00:08.1]}
78... g4 {[%clk 0:00:09.2]} 79. b7 {[%clk 0:00:09]} 79... gxh3 {[%clk
0:00:07.6]} 80. b8=Q {[%clk 0:00:08.7]} 80... h2 {[%clk 0:00:08.5]} 81. Qb2+
{[%clk 0:00:08.6]} 81... Kh3 {[%clk 0:00:07.8]} 82. Qc1 {[%clk 0:00:08.6]} 82...
Kg2 {[%clk 0:00:08.2]} 83. Qd2+ {[%clk 0:00:08.9]} 83... Kg3 {[%clk 0:00:08.6]}
84. Qe1+ {[%clk 0:00:08.8]} 84... Kg2 {[%clk 0:00:09.1]} 85. Qe2+ {[%clk
0:00:07.8]} 85... Kg3 {[%clk 0:00:09.4]} 86. Qf1 {[%clk 0:00:07.7]} 1-0